bitfinex-derivatives/quotes_BTCF0:USTF0_20250711
["timestamp","ask_amount","ask_price","bid_price","bid_amount"]
[1752216700494,2.82522078,117900.0,117890.0,0.7665704]
[1752216700992,2.87062851,117900.0,117890.0,0.7665704]
[1752216702101,3.23142851,117900.0,117890.0,0.1236904]
[1752216702299,0.2523705,117890.0,117880.0,0.89781037]
[1752216702499,1.39316794,117890.0,117880.0,0.25609037]
[1752216702998,1.39360794,117890.0,117880.0,0.25609037]
[1752216703700,1.31980696,117890.0,117880.0,0.30389652]
[1752216703899,1.31980696,117890.0,117880.0,0.30589652]
[1752216704497,1.31980696,117890.0,117880.0,0.26349742]
[1752216704898,0.9571305,117890.0,117880.0,0.26349742]
[1752216705199,1.31980696,117890.0,117880.0,0.26349742]
[1752216705400,1.31980696,117890.0,117880.0,0.26449742]
[1752216706297,1.68060696,117890.0,117880.0,0.19924762]
[1752216706497,1.68060696,117890.0,117880.0,0.19824762]
[1752216706804,1.68060696,117890.0,117880.0,0.22009922]
[1752216707492,1.68060696,117890.0,117870.0,0.350138]
[1752216707695,0.67416136,117880.0,117870.0,0.33268659]
[1752216707998,0.67460136,117880.0,117870.0,0.21789159]
[1752216708193,1.03540136,117880.0,117870.0,0.04780459]
[1752216709102,1.04527866,117880.0,117870.0,0.04780459]
[1752216710097,1.04527866,117880.0,117870.0,0.04880459]
[1752216710303,1.04527866,117880.0,117870.0,0.02595299]
[1752216710999,1.04727866,117880.0,117870.0,0.02595299]
[1752216711198,0.2481993,117870.0,117860.0,0.0228516]
[1752216711393,1.9465793,117870.0,117860.0,0.1924853]
[1752216711594,2.30925576,117870.0,117860.0,0.0228516]
[1752216713103,2.31169576,117870.0,117860.0,0.0228516]
[1752216713402,2.31269576,117870.0,117860.0,0.0228516]
[1752216717699,0.1696337,117860.0,117850.0,0.04682775]
[1752216717903,1.62510016,117860.0,117850.0,0.04682775]
[1752216718094,1.03579016,117860.0,117850.0,0.21647575]
[1752216718294,1.67055016,117860.0,117850.0,0.04682775]
[1752216718900,1.67055016,117860.0,117850.0,0.0304688]
[1752216720396,1.03579016,117860.0,117850.0,0.2001168]
[1752216720600,0.9461537,117860.0,117850.0,0.64459326]
[1752216720810,0.9150537,117860.0,117850.0,0.61412446]
[1752216721011,0.8820537,117860.0,117850.0,0.64532446]
[1752216721196,0.2482137,117860.0,117850.0,0.67612446]
[1752216721399,0.2482137,117860.0,117850.0,0.313448]
[1752216721605,0.2807137,117860.0,117850.0,0.313448]
[1752216722613,0.2807137,117860.0,117850.0,0.32964448]
[1752216723111,0.2807137,117860.0,117850.0,0.35507308]
[1752216723704,1.00419016,117860.0,117850.0,0.30511308]
[1752216724106,1.00419016,117860.0,117850.0,0.07282508]
[1752216724307,1.03569016,117860.0,117850.0,0.07282508]
[1752216724712,1.03569016,117860.0,117850.0,0.24247308]
[1752216725012,0.67489016,117860.0,117850.0,0.24247308]
[1752216725607,0.67533016,117860.0,117850.0,0.24247308]
[1752216725807,0.67489016,117860.0,117850.0,0.24247308]
[1752216726308,0.64499805,117860.0,117850.0,0.07282508]
[1752216727205,0.64499805,117860.0,117850.0,0.24247308]
[1752216729012,0.64499805,117860.0,117850.0,0.27431308]
[1752216729013,0.3122137,117860.0,117850.0,0.27431308]
[1752216729312,0.2482137,117860.0,117850.0,0.68745743]
[1752216729509,0.2482137,117860.0,117850.0,0.35515308]
[1752216731708,0.2482137,117860.0,117850.0,0.68793743]
[1752216731912,0.2482137,117860.0,117850.0,1.31953743]
[1752216733509,0.2482137,117860.0,117850.0,0.98675308]
[1752216736112,0.2482537,117860.0,117850.0,0.98675308]
[1752216736317,0.2482537,117860.0,117850.0,0.35515308]
[1752216736616,0.2482537,117860.0,117850.0,0.98507308]
[1752216737316,0.58103805,117860.0,117850.0,0.90443308]
[1752216737517,0.3106537,117860.0,117850.0,0.90443308]
[1752216738118,0.3106537,117860.0,117850.0,0.95291308]
[1752216739318,0.3106537,117860.0,117850.0,0.95279308]
[1752216739815,0.6714537,117860.0,117850.0,0.95279308]
[1752216740014,0.6714537,117860.0,117850.0,0.95279318]
[1752216740214,0.6714537,117860.0,117850.0,0.15362508]
[1752216740513,0.6714537,117860.0,117850.0,0.87123318]
[1752216741619,0.6714537,117860.0,117850.0,0.91971318]
[1752216742411,0.6714537,117860.0,117850.0,0.29159318]
[1752216742609,0.6714537,117860.0,117850.0,0.24311318]
[1752216742810,1.00423805,117860.0,117850.0,0.24311318]
[1752216743017,1.00467805,117860.0,117850.0,0.24311318]
[1752216743421,0.6718937,117860.0,117850.0,0.24311318]
[1752216743621,1.00467805,117860.0,117850.0,0.24311318]
[1752216744017,0.6718937,117860.0,117850.0,0.24311318]
[1752216744321,0.6718937,117860.0,117850.0,0.29159318]
[1752216745414,0.6718937,117860.0,117850.0,0.24311318]
[1752216745816,0.6718937,117860.0,117850.0,0.29159318]
[1752216746317,0.3110937,117860.0,117850.0,0.29159318]
[1752216746516,0.6714537,117860.0,117850.0,0.29159318]
[1752216746717,0.6718937,117860.0,117850.0,0.29159318]
[1752216747922,0.6718937,117860.0,117850.0,0.29159308]
[1752216748517,1.00467805,117860.0,117850.0,0.29159308]
[1752216749226,1.00467805,117860.0,117850.0,0.32206188]
[1752216749619,1.00467805,117860.0,117850.0,0.15241388]
[1752216750225,1.00467805,117860.0,117850.0,0.12194508]
[1752216750723,1.00467805,117860.0,117850.0,0.29159308]
[1752216751224,1.00467805,117860.0,117850.0,0.12194508]
[1752216752827,1.00467805,117860.0,117850.0,0.07346508]
[1752216755428,1.00467805,117860.0,117850.0,0.04162508]
[1752216756920,1.00667805,117860.0,117850.0,0.04162508]
[1752216757321,1.00467805,117860.0,117850.0,0.04162508]
[1752216757620,1.00767805,117860.0,117850.0,0.04162508]
[1752216759728,0.6748937,117860.0,117850.0,0.04162508]
[1752216760028,1.00867805,117860.0,117850.0,0.04162508]
[1752216760828,1.00967805,117860.0,117850.0,0.04162508]
[1752216761730,0.6768937,117860.0,117850.0,0.29047308]
[1752216762530,1.00967805,117860.0,117850.0,0.24199308]
[1752216766632,0.1696912,117820.0,117810.0,0.06093761]
[1752216766828,0.1697056,117810.0,117800.0,0.06656052]
[1752216767024,0.1697633,117770.0,117760.0,0.11860276]
[1752216767230,0.69358435,117770.0,117760.0,0.09887332]
[1752216767535,0.5609633,117770.0,117760.0,0.02128332]
[1752216767734,0.2121597,117800.0,117760.0,1.03019646]
[1752216767934,0.2121597,117800.0,117790.0,0.07842]
[1752216768231,0.90574405,117800.0,117790.0,0.07842]
[1752216768538,0.90622406,117800.0,117790.0,0.07842]
[1752216768731,0.90622406,117800.0,117770.0,1.55724185]
[1752216768732,0.1697489,117780.0,117770.0,0.11012]
[1752216769032,0.86333325,117780.0,117770.0,0.0099525]
[1752216769232,1.58431314,117780.0,117770.0,0.0099525]
[1752216770132,1.61751314,117780.0,117770.0,0.0099525]
[1752216770537,1.78732914,117780.0,117770.0,0.0099525]
[1752216770732,1.78732914,117780.0,117770.0,0.0109525]
[1752216771335,1.78732914,117780.0,117770.0,0.001]
[1752216771735,0.1697631,117770.0,117760.0,0.01133075]
[1752216771937,0.92754745,117770.0,117760.0,0.02128491]
[1752216772137,0.92798745,117770.0,117760.0,0.02128491]
[1752216772340,1.09781945,117770.0,117760.0,0.02128491]
[1752216772547,1.71765945,117770.0,117760.0,0.02128491]
[1752216772839,0.92798745,117770.0,117760.0,0.02128491]
[1752216773140,0.1697776,117760.0,117750.0,0.00099364]
[1752216773340,1.51616195,117760.0,117750.0,0.21727564]
[1752216773546,1.51616195,117760.0,117750.0,0.04748364]
[1752216773742,0.03022,117740.0,117720.0,0.00169887]
[1752216774043,0.07671,117730.0,117720.0,1.51168417]
[1752216774246,0.03022,117730.0,117720.0,1.8541147]
[1752216774445,0.5730678,117740.0,117720.0,2.2573723]
[1752216774639,0.39102,117740.0,117730.0,0.2627509]
[1752216775048,0.03022,117740.0,117730.0,0.6235509]
[1752216775544,0.03026,117740.0,117730.0,0.2627509]
[1752216775839,0.03026,117740.0,117730.0,0.3092409]
[1752216775840,0.36304435,117740.0,117730.0,0.3092409]
[1752216776040,0.03026,117740.0,117730.0,0.6700409]
[1752216776338,4e-05,117740.0,117730.0,1.00282525]
[1752216776739,4e-05,117740.0,117730.0,1.00382525]
[1752216777140,4e-05,117740.0,117730.0,0.6710409]
[1752216777341,4e-05,117740.0,117730.0,1.00382525]
[1752216777552,4e-05,117740.0,117730.0,1.00582525]
[1752216778143,4e-05,117740.0,117730.0,1.00630525]
[1752216778453,4e-05,117740.0,117730.0,1.42617725]
[1752216778642,4e-05,117740.0,117730.0,0.169872]
[1752216778842,4e-05,117740.0,117730.0,0.3716229]
[1752216779046,4e-05,117740.0,117730.0,0.70484725]
[1752216779747,0.36284,117770.0,117740.0,0.042451]
[1752216779748,0.00204,117770.0,117740.0,0.042451]
[1752216779945,0.00252,117770.0,117760.0,0.51893212]
[1752216780146,0.04996,117770.0,117760.0,0.54738777]
[1752216780352,0.58272745,117770.0,117760.0,0.18658777]
[1752216780555,0.41296435,117770.0,117760.0,0.18414777]
[1752216780751,0.58683635,117770.0,117760.0,0.18414777]
[1752216780943,0.08666,117770.0,117760.0,0.18414777]
[1752216781148,0.08618,117770.0,117760.0,0.18414777]
[1752216781348,0.08218,117770.0,117760.0,0.18814777]
[1752216781747,0.08018,117770.0,117760.0,0.25344777]
[1752216782150,0.00204,117770.0,117760.0,0.94703212]
[1752216782345,0.00204,117770.0,117760.0,1.11730412]
[1752216782745,0.04792,117790.0,117780.0,0.1697487]
[1752216782951,0.04792,117790.0,117780.0,1.75665305]
[1752216783150,0.04792,117790.0,117780.0,1.4871687]
[1752216783357,0.07814,117790.0,117780.0,1.49639445]
[1752216784559,0.07914,117790.0,117780.0,1.49639445]
[1752216785358,0.07914,117790.0,117780.0,1.85719445]
[1752216786456,0.07918,117790.0,117780.0,1.85719445]
[1752216787157,0.07918,117790.0,117780.0,2.1899788]
[1752216788154,0.07918,117790.0,117780.0,2.1904588]
[1752216793661,0.09907486,117790.0,117780.0,2.1904588]
[1752216794466,0.02093486,117790.0,117780.0,2.1904588]
[1752216794865,0.07010486,117790.0,117780.0,2.1904588]
[1752216795258,0.07010486,117790.0,117780.0,2.20638206]
[1752216795658,0.07010486,117790.0,117780.0,0.61947771]
[1752216795860,0.07010486,117790.0,117780.0,1.57694206]
[1752216797262,0.07010486,117790.0,117780.0,0.95226206]
[1752216797468,0.07010486,117790.0,117780.0,1.57694206]
[1752216799470,0.02093486,117790.0,117780.0,1.75669379]
[1752216799768,0.02093486,117790.0,117780.0,1.42390944]
[1752216800067,0.02093486,117790.0,117780.0,1.75669379]
[1752216801866,0.60448351,117790.0,117780.0,0.19537771]
[1752216802170,0.83965551,117790.0,117780.0,0.81861771]
[1752216802572,0.50687116,117790.0,117780.0,0.81861771]
[1752216802867,0.83965551,117790.0,117780.0,0.81809771]
[1752216803068,0.84017552,117790.0,117780.0,0.81809771]
[1752216803267,0.84017552,117790.0,117780.0,0.81861771]
[1752216803471,0.50739117,117790.0,117780.0,0.81861771]
[1752216803969,0.50739117,117790.0,117780.0,0.81909771]
[1752216804168,0.84017552,117790.0,117780.0,0.81909771]
[1752216804866,0.50739117,117790.0,117780.0,0.81909771]
[1752216805068,0.33765687,117790.0,117780.0,1.15188206]
[1752216805273,0.13592487,117790.0,117780.0,1.18428206]
[1752216805575,0.02093486,117790.0,117780.0,1.18428206]
[1752216805872,0.02093486,117790.0,117780.0,1.21688206]
[1752216806271,0.13286486,117790.0,117780.0,1.18428206]
[1752216806570,0.13286486,117790.0,117780.0,0.81869771]
[1752216806571,0.16556486,117790.0,117780.0,0.81869771]
[1752216806964,0.83795551,117790.0,117780.0,0.82856976]
[1752216807163,0.83795551,117790.0,117780.0,0.82852976]
[1752216807164,0.83843551,117790.0,117780.0,0.82852976]
[1752216807364,1.19923551,117790.0,117780.0,0.20532976]
[1752216807566,1.44923551,117790.0,117780.0,0.18567196]
[1752216807771,1.44923551,117790.0,117780.0,0.80903196]
[1752216807966,1.44923551,117790.0,117780.0,0.18615196]
[1752216808272,1.44923551,117790.0,117780.0,0.18567196]
[1752216808472,1.44923551,117790.0,117780.0,0.80899196]
[1752216808873,1.58503114,117790.0,117780.0,0.80899196]
[1752216809974,1.58503114,117790.0,117780.0,0.80903196]
[1752216810665,1.58503114,117790.0,117780.0,0.18567196]
[1752216810871,1.58503114,117790.0,117780.0,0.80843196]
[1752216811070,1.58503114,117790.0,117780.0,0.62276]
[1752216811271,0.2507787,117780.0,117770.0,0.8349475]
[1752216811474,1.25717237,117780.0,117770.0,0.7924031]
[1752216811779,0.2507931,117770.0,117760.0,0.86124891]
[1752216811981,1.33293994,117770.0,117760.0,0.24860306]
[1752216812277,1.58293994,117770.0,117760.0,0.87120306]
[1752216812980,1.58341994,117770.0,117760.0,0.87168306]
[1752216813476,1.58341994,117770.0,117760.0,0.88114669]
[1752216813776,1.58341994,117770.0,117760.0,0.87168306]
[1752216814079,1.11483996,117770.0,117760.0,0.87168306]
[1752216814279,1.11483996,117770.0,117760.0,0.87468306]
[1752216815976,1.58341994,117770.0,117760.0,0.87468306]
[1752216816374,1.58345994,117770.0,117760.0,0.87468306]
[1752216817377,1.58345994,117770.0,117760.0,0.87668306]
[1752216819880,0.86487996,117770.0,117760.0,0.87668306]
[1752216820070,0.69511686,117770.0,117760.0,0.87668306]
[1752216820274,0.86487996,117770.0,117760.0,0.87668306]
[1752216820681,0.46224486,117770.0,117760.0,0.87668306]
[1752216820979,0.06958486,117770.0,117760.0,1.37556304]
[1752216821282,0.06910486,117770.0,117760.0,1.37556257]
[1752216821481,0.06910486,117770.0,117760.0,0.93968259]
[1752216824186,0.04921,117770.0,117760.0,0.97019302]
[1752216824690,4e-05,117770.0,117760.0,1.60097832]
[1752216824883,4e-05,117770.0,117760.0,1.96177832]
[1752216825084,4e-05,117770.0,117760.0,1.49319834]
[1752216825387,4e-05,117770.0,117760.0,1.96177832]
[1752216826883,4e-05,117770.0,117760.0,1.95182464]
[1752216828491,4e-05,117770.0,117760.0,1.93889436]
[1752216828889,4e-05,117770.0,117760.0,1.47031438]
[1752216829090,4e-05,117770.0,117760.0,1.96940479]
[1752216830386,4e-05,117770.0,117760.0,1.95945132]
[1752216830590,4e-05,117770.0,117760.0,1.50082481]
[1752216830791,4e-05,117770.0,117760.0,1.83400305]
[1752216831593,4e-05,117770.0,117760.0,1.84694058]
[1752216832092,4e-05,117770.0,117760.0,1.81643015]
[1752216832293,4e-05,117770.0,117760.0,1.84694058]
[1752216833092,0.04532668,117800.0,117770.0,0.0424377]
[1752216833292,0.41059,117810.0,117800.0,0.1697199]
[1752216833293,0.09511668,117810.0,117800.0,0.1697199]
[1752216833592,0.04732668,117810.0,117800.0,2.10401814]
[1752216833792,1e-07,117810.0,117800.0,2.67307237]
[1752216834389,0.15799668,117830.0,117820.0,0.1696911]
[1752216834592,0.09390928,117830.0,117820.0,1.76061353]
[1752216834794,0.04979,117850.0,117840.0,0.1696623]
[1752216834995,0.08227,117850.0,117840.0,1.7737423]
[1752216835196,0.08227,117850.0,117840.0,2.27245382]
[1752216835399,0.11527,117850.0,117840.0,1.8046423]
[1752216835590,0.11527,117850.0,117840.0,2.37316824]
[1752216835896,0.11527,117850.0,117840.0,1.91493749]
[1752216836891,0.11627,117850.0,117840.0,1.91293749]
[1752216837497,0.11627,117850.0,117840.0,1.91393749]
[1752216837694,0.11527,117850.0,117840.0,1.91393749]
[1752216838090,1.53340152,117850.0,117840.0,0.23751672]
[1752216838398,1.53392153,117850.0,117840.0,0.85959672]
[1752216838601,1.56682153,117850.0,117840.0,0.86003672]
[1752216838896,0.92936201,117850.0,117840.0,0.23751672]
[1752216839088,0.14869001,117850.0,117840.0,1.3369021]
[1752216839293,0.11527,117850.0,117840.0,1.4003421]
[1752216839488,0.11527,117850.0,117840.0,0.93253058]
[1752216840197,0.11527,117850.0,117840.0,1.29333058]
[1752216840595,0.11527,117850.0,117840.0,0.93253058]
[1752216841200,0.002,117850.0,117840.0,1.3686421]
[1752216841397,0.002,117850.0,117840.0,1.1394221]
[1752216841599,0.04979,117850.0,117840.0,1.4014221]
[1752216841795,0.04979,117850.0,117840.0,1.4015021]
[1752216841995,0.08189,117850.0,117840.0,0.93369058]
[1752216842196,0.08189,117850.0,117840.0,1.29449058]
[1752216842396,0.08189,117850.0,117840.0,0.93369058]
[1752216842990,0.08189,117850.0,117840.0,0.27811058]
[1752216842991,0.11437,117850.0,117840.0,0.27811058]
[1752216843191,1.53250142,117850.0,117840.0,0.23707672]
[1752216843394,1.28028352,117850.0,117840.0,0.85995672]
[1752216843597,1.28028352,117850.0,117840.0,0.89093672]
[1752216843598,1.44993142,117850.0,117840.0,0.89093672]
[1752216843796,1.44993142,117850.0,117840.0,0.93808672]
[1752216843993,1.0145999,117850.0,117840.0,0.69277442]
[1752216844194,1.57023802,117850.0,117840.0,0.79483944]
[1752216844597,1.57123802,117850.0,117840.0,0.79483944]
[1752216844793,1.57123802,117850.0,117840.0,0.17135944]
[1752216845199,1.57123802,117850.0,117840.0,0.82637944]
[1752216845398,1.0610124,117850.0,117840.0,0.82637944]
[1752216845598,1.1088024,117850.0,117840.0,0.82637944]
[1752216846101,1.0663899,117850.0,117840.0,0.82637944]
[1752216846498,1.0981899,117850.0,117840.0,0.82637944]
[1752216847406,1.0981899,117850.0,117840.0,0.87352944]
[1752216847407,0.928542,117850.0,117840.0,0.87352944]
[1752216848303,1.0981899,117850.0,117840.0,0.87352944]
[1752216848504,1.0981899,117850.0,117840.0,0.94140365]
[1752216849304,0.928542,117850.0,117840.0,0.94140365]
[1752216850000,1.39735352,117850.0,117810.0,0.04715]
[1752216850208,1.24844462,117820.0,117810.0,0.1696947]
[1752216850500,1.24844462,117820.0,117810.0,0.7941347]
[1752216850805,1.3148301,117820.0,117810.0,0.1696947]
[1752216851008,1.3143501,117820.0,117810.0,0.1696947]
[1752216851305,1.3143501,117820.0,117810.0,0.7943747]
[1752216852003,0.85053858,117820.0,117810.0,0.8725047]
[1752216852208,0.85453858,117820.0,117810.0,0.8725047]
[1752216852501,0.85453858,117820.0,117810.0,0.93896981]
[1752216853410,0.85053858,117820.0,117810.0,0.93896981]
[1752216853710,0.85353858,117820.0,117810.0,0.93896981]
[1752216854006,0.84953858,117820.0,117810.0,0.93896981]
[1752216854208,0.85053858,117820.0,117810.0,0.93896981]
[1752216854405,0.84753858,117820.0,117810.0,0.93996981]
[1752216854597,0.84653858,117820.0,117810.0,0.96502358]
[1752216855202,0.84653858,117820.0,117810.0,0.29319358]
[1752216855403,0.84653858,117820.0,117810.0,0.91731358]
[1752216855604,0.84705859,117820.0,117810.0,0.91779358]
[1752216856100,0.84705859,117820.0,117810.0,0.91779507]
[1752216856509,0.84705859,117820.0,117810.0,0.85132996]
[1752216856705,1.31487011,117820.0,117810.0,0.02653526]
[1752216856908,1.31487011,117820.0,117810.0,0.627]
[1752216857109,1.31487011,117820.0,117810.0,0.00344]
[1752216857304,1.31487011,117820.0,117810.0,0.003]
[1752216857612,1.93911011,117820.0,117810.0,0.003]
[1752216859112,1.93911011,117820.0,117810.0,0.02607095]
[1752216861212,0.84705859,117820.0,117810.0,0.22769645]
[1752216861815,0.84705859,117820.0,117810.0,0.27613645]
[1752216863012,0.84705859,117820.0,117810.0,0.22769645]
[1752216863213,1.93879011,117820.0,117810.0,0.02607095]
[1752216864711,1.93879011,117820.0,117810.0,0.003]
[1752216865712,1.93879011,117820.0,117810.0,0.02645825]
[1752216867308,0.2013632,117770.0,117760.0,0.3367076]
[1752216867508,1.07804472,117770.0,117760.0,0.36344792]
[1752216867719,0.7469508,117770.0,117760.0,0.36344792]
[1752216867921,0.7469508,117770.0,117760.0,0.34665971]
[1752216868214,0.5776676,117770.0,117760.0,0.34709971]
[1752216868417,0.6848308,117770.0,117760.0,0.41159971]
[1752216869117,0.6848308,117770.0,117760.0,1.03643971]
[1752216869320,0.6858308,117770.0,117760.0,1.04143971]
[1752216869517,0.6858308,117770.0,117760.0,1.108322]
[1752216869719,0.00148,117770.0,117760.0,1.96183764]
[1752216870013,0.001,117770.0,117760.0,1.96183764]
[1752216870414,0.5729796,117790.0,117780.0,0.1697488]
[1752216870610,0.7267672,117790.0,117780.0,0.8755488]
[1752216870812,0.4665176,117790.0,117780.0,0.9410488]
[1752216871222,0.6362519,117790.0,117780.0,1.41881262]
[1752216871517,0.6362519,117790.0,117780.0,0.9510011]
[1752216872317,0.1067176,117790.0,117780.0,1.42181262]
[1752216872516,0.0751176,117790.0,117780.0,1.42181262]
[1752216872716,0.2453319,117790.0,117780.0,1.42225262]
[1752216872917,0.2448519,117790.0,117780.0,0.9590011]
[1752216873219,0.2764519,117790.0,117780.0,0.9490488]
[1752216873520,0.2764519,117790.0,117780.0,0.9590007]
[1752216873818,0.2764919,117790.0,117780.0,0.9590007]
[1752216874522,0.1067576,117790.0,117780.0,0.9590007]
[1752216874721,0.00104,117790.0,117780.0,1.42681222]
[1752216875423,0.00104,117790.0,117780.0,1.41686032]
[1752216876023,0.00104,117790.0,117780.0,1.42681218]
[1752216876420,0.00104,117790.0,117780.0,0.95900066]
[1752216876622,0.00104,117790.0,117780.0,1.42681218]
[1752216876829,0.00104,117790.0,117780.0,1.44284261]
[1752216877317,0.00104,117790.0,117780.0,1.43289075]
[1752216877517,0.00104,117790.0,117780.0,1.4428426]
[1752216877824,0.00104,117790.0,117780.0,1.8036426]
[1752216878018,0.00104,117790.0,117780.0,1.8041226]
[1752216879524,0.00104,117790.0,117780.0,1.82717913]
[1752216880918,0.00104,117790.0,117780.0,1.82717823]
[1752216881324,0.002,117810.0,117800.0,0.2016399]
[1752216881523,0.0761176,117810.0,117800.0,1.4534181]
[1752216881725,0.1077176,117810.0,117800.0,0.98604658]
[1752216882229,0.002,117810.0,117800.0,0.98604658]
[1752216882916,0.002,117810.0,117800.0,1.33689563]
[1752216883117,0.002,117810.0,117800.0,1.33889563]
[1752216883724,0.002,117810.0,117800.0,1.33989563]
[1752216884027,0.002,117810.0,117800.0,0.98904601]
[1752216884326,0.00204,117810.0,117800.0,0.98904601]
[1752216884521,0.08046,117810.0,117800.0,0.36660601]
[1752216884728,0.3242831,117810.0,117800.0,0.92370601]
[1752216884926,0.3855831,117810.0,117800.0,0.92370601]
[1752216885327,0.3855831,117810.0,117800.0,0.91375563]
[1752216885625,0.7463831,117810.0,117800.0,0.91363563]
[1752216885825,0.7463831,117810.0,117800.0,0.91355563]
[1752216886215,0.7463831,117810.0,117800.0,0.29255563]
[1752216886416,0.7463831,117810.0,117800.0,0.91275563]
[1752216886924,0.7463831,117810.0,117800.0,0.29211563]
[1752216887124,0.7463831,117810.0,117800.0,0.91263563]
[1752216887325,0.3855831,117810.0,117800.0,0.91263563]
[1752216887525,0.7463831,117810.0,117800.0,0.91263563]
[1752216888532,0.7468631,117810.0,117800.0,0.91307563]
[1752216889829,0.7468631,117810.0,117800.0,0.29255563]
[1752216890020,0.7468631,117810.0,117800.0,0.91215563]
[1752216890224,0.7468631,117810.0,117800.0,0.29255563]
[1752216890426,0.7468631,117810.0,117800.0,0.91195563]
[1752216890730,0.7468631,117810.0,117800.0,0.91247563]
[1752216892930,0.7468631,117810.0,117800.0,0.91187563]
[1752216897242,0.7468631,117810.0,117800.0,0.29263563]
[1752216897436,0.7468631,117810.0,117800.0,0.22771264]
[1752216897644,0.7468631,117810.0,117800.0,0.89491264]
[1752216898338,0.7468631,117810.0,117800.0,0.27687264]
[1752216898537,0.7468631,117810.0,117800.0,0.89519264]
[1752216898742,0.7468631,117810.0,117800.0,0.27687264]
[1752216898940,0.7468631,117810.0,117800.0,0.72499274]
[1752216899340,0.7468631,117810.0,117800.0,0.89471264]
[1752216900147,0.7468631,117810.0,117800.0,0.9106108]
[1752216900445,0.7468631,117810.0,117800.0,0.92056212]
[1752216901247,0.5771576,117810.0,117800.0,0.77053364]
[1752216901449,0.7000431,117810.0,117800.0,0.92020212]
[1752216901950,0.7000431,117810.0,117800.0,0.9102508]
[1752216902343,0.7468631,117810.0,117800.0,0.9102508]
[1752216905253,0.7468631,117810.0,117800.0,0.9106508]
[1752216906450,0.7468631,117810.0,117800.0,0.92060186]
[1752216907753,0.7468631,117810.0,117800.0,0.30272186]
[1752216908050,0.6727455,117810.0,117800.0,0.91932186]
[1752216908853,0.6727455,117810.0,117800.0,0.94984635]
[1752216909049,0.50304,117810.0,117800.0,0.80105787]
[1752216909251,0.6727455,117810.0,117800.0,1.44797787]
[1752216909552,0.06422,117810.0,117800.0,0.98016635]
[1752216909741,0.06374,117810.0,117800.0,0.98016635]
[1752216909941,0.2802655,117810.0,117800.0,0.98016635]
[1752216910644,0.03364,117810.0,117800.0,0.98016635]
[1752216910847,0.2033455,117810.0,117800.0,0.98016635]
[1752216911156,0.2033455,117810.0,117800.0,0.98016602]
[1752216913265,0.2033455,117810.0,117800.0,0.98064602]
[1752216913750,0.2774631,117810.0,117800.0,0.98064602]
[1752216914460,0.1077576,117810.0,117800.0,0.36432602]
[1752216914756,0.1077576,117810.0,117800.0,0.98056602]
[1752216915558,0.2774631,117810.0,117800.0,0.98056602]
[1752216916657,0.0761576,117810.0,117800.0,0.98056602]
[1752216916848,0.0761576,117810.0,117800.0,0.98052602]
[1752216918358,0.0761576,117810.0,117800.0,1.44833754]
[1752216918753,0.0761576,117810.0,117800.0,1.43838681]
[1752216918754,0.00204,117810.0,117800.0,1.43838681]
[1752216918956,0.00204,117810.0,117800.0,1.30347493]
[1752216919556,0.00204,117810.0,117800.0,1.31342565]
[1752216919756,0.00204,117810.0,117800.0,1.67422565]
[1752216920859,0.00204,117810.0,117800.0,1.84009792]
[1752216924665,0.00204,117810.0,117800.0,1.84109792]
[1752216925362,0.00204,117810.0,117800.0,1.37292601]
[1752216925564,0.00204,117810.0,117800.0,1.84109792]
[1752216925767,0.10951,117830.0,117820.0,0.2495211]
[1752216925963,0.1836276,117830.0,117820.0,0.88879384]
[1752216926168,0.3533043,117830.0,117820.0,0.95489384]
[1752216926363,0.7466643,117830.0,117820.0,0.33877384]
[1752216926670,1.21483621,117830.0,117820.0,0.02315274]
[1752216926869,1.21483621,117830.0,117820.0,0.19284384]
[1752216927071,1.21483621,117830.0,117820.0,0.1696911]
[1752216927367,0.2492611,117820.0,117810.0,0.950453]
[1752216927564,1.21355061,117820.0,117810.0,0.97427233]
[1752216927961,1.21403061,117820.0,117810.0,0.35863233]
[1752216928170,1.21403061,117820.0,117810.0,0.97471233]
[1752216928370,1.21403061,117820.0,117810.0,0.97571233]
[1752216928668,0.50205,117820.0,117810.0,0.99862045]
[1752216928860,0.00048,117820.0,117810.0,1.82759236]
[1752216929169,0.7136508,117840.0,117830.0,0.2023867]
[1752216929372,1.14908841,117840.0,117830.0,0.88936603]
[1752216929561,1.14908841,117840.0,117830.0,0.88984603]
[1752216930070,1.10667221,117840.0,117830.0,0.88984603]
[1752216930573,0.93700761,117840.0,117830.0,0.88984603]
[1752216930966,1.57484182,117840.0,117830.0,0.81001603]
[1752216933169,1.57684182,117840.0,117830.0,0.81001603]
[1752216933572,0.93900761,117840.0,117830.0,0.8607423]
[1752216933770,0.86119761,117840.0,117830.0,1.37603421]
[1752216933972,0.86119761,117840.0,117830.0,1.43753421]
[1752216934175,0.86119761,117840.0,117830.0,0.9693623]
[1752216934176,0.90820761,117840.0,117830.0,0.9693623]
[1752216934376,0.91020761,117840.0,117830.0,0.9693623]
[1752216934676,0.54940761,117840.0,117830.0,0.9693623]
[1752216934979,0.54940761,117840.0,117830.0,0.9692823]
[1752216935178,0.57850761,117840.0,117830.0,0.9692823]
[1752216936369,0.57950761,117840.0,117830.0,0.9692823]
[1752216936775,0.57950761,117840.0,117830.0,0.2918223]
[1752216936977,0.57650761,117840.0,117830.0,0.9072223]
[1752216937679,0.74616991,117840.0,117830.0,0.9072223]
[1752216937874,1.21434182,117840.0,117830.0,0.2115123]
[1752216938575,0.74616991,117840.0,117830.0,0.2115123]
[1752216938772,1.21434182,117840.0,117830.0,0.2115123]
[1752216938972,0.2492611,117820.0,117810.0,0.28215163]
[1752216939173,1.15235061,117820.0,117810.0,0.23619349]
[1752216939373,1.21825061,117820.0,117810.0,0.85203349]
[1752216940078,0.7500787,117820.0,117810.0,0.27190349]
[1752216940279,0.7500787,117820.0,117810.0,0.93482349]
[1752216940979,0.7500787,117820.0,117810.0,0.96038893]
[1752216942075,0.7500787,117820.0,117810.0,0.96338893]
[1752216943078,0.7505587,117820.0,117810.0,0.93826349]
[1752216943379,0.7505587,117820.0,117810.0,0.96116902]
[1752216943772,0.7505587,117820.0,117810.0,0.93826349]
[1752216944272,0.7505587,117820.0,117810.0,0.93818349]
[1752216946778,1.57953061,117820.0,117810.0,0.11033739]
[1752216947078,1.57953061,117820.0,117810.0,0.006]
[1752216947079,2.19521061,117820.0,117810.0,0.006]
[1752216948073,2.19521061,117820.0,117810.0,0.03002124]
[1752216948276,2.81089061,117820.0,117810.0,0.03002124]
[1752216948581,0.2495944,117790.0,117780.0,0.02396035]
[1752216948782,0.2496088,117780.0,117770.0,0.2867012]
[1752216948979,0.6414088,117780.0,117770.0,0.2999365]
[1752216949179,0.6714088,117780.0,117770.0,0.2999365]
[1752216950385,0.6714088,117780.0,117770.0,0.29993682]
[1752216951185,0.6714088,117780.0,117770.0,0.30293682]
[1752216951583,0.6714088,117780.0,117770.0,0.29298327]
[1752216951778,0.6714088,117780.0,117770.0,0.30493687]
[1752216952887,0.6714088,117780.0,117770.0,0.29498327]